bitfinex-derivatives/quotes_ETHF0:USTF0_20251226
["timestamp","ask_amount","ask_price","bid_price","bid_amount"]
[1766752987459,0.96994107,2973.1,2971.9,0.79096053]
[1766752987660,5.75030516,2973.3,2971.9,0.79096053]
[1766752987848,0.96994217,2973.2,2971.9,0.79096053]
[1766752988051,0.96994217,2973.1,2971.9,0.79096053]
[1766752988254,5.75030516,2973.3,2971.9,0.79096053]
[1766752988554,0.96994328,2973.2,2971.9,0.79096053]
[1766752988754,0.96994328,2973.1,2971.9,0.79096053]
[1766752988956,5.75030516,2973.3,2971.9,0.79096053]
[1766752989254,0.96994328,2973.2,2971.9,0.79096053]
[1766752989446,0.96994328,2973.1,2971.9,0.79096053]
[1766752989651,5.75030516,2973.3,2971.9,0.79096053]
[1766752989847,0.96994213,2973.2,2971.9,0.79096053]
[1766752990052,0.96994213,2973.1,2971.9,0.79096053]
[1766752990355,5.75030516,2973.3,2971.9,0.79096053]
[1766752990555,0.96994283,2973.2,2971.9,0.79096053]
[1766752990755,0.96994283,2973.1,2971.9,0.79096053]
[1766752991058,5.75030516,2973.3,2971.9,0.79096053]
[1766752991356,0.96994236,2973.2,2971.9,0.79096053]
[1766752991659,0.96994236,2973.1,2971.8,0.00504795]
[1766752991956,6.54126569,2973.3,2971.8,0.00504795]
[1766752992154,0.96994268,2973.2,2971.8,0.00504795]
[1766752992353,0.96994268,2973.1,2971.8,0.00504795]
[1766752992553,6.54126569,2973.3,2971.8,0.00504795]
[1766752992854,0.96993715,2973.2,2971.8,0.00504795]
[1766752993055,0.96993715,2973.1,2971.8,0.00504795]
[1766752993353,6.54126569,2973.3,2971.8,0.00504795]
[1766752993554,0.96994402,2973.2,2971.8,0.00504795]
[1766752993859,0.96994402,2973.1,2971.8,0.00504795]
[1766752994061,6.54126569,2973.3,2971.8,0.00504795]
[1766752994357,0.96994252,2973.2,2971.8,0.00504795]
[1766752994559,0.96994252,2973.1,2972.0,0.79096053]
[1766752994754,6.54126569,2973.3,2972.0,0.79096053]
[1766752995057,0.96994146,2973.2,2972.0,0.79096053]
[1766752995261,0.96994146,2973.1,2972.0,0.79096053]
[1766752995461,6.54126569,2973.3,2972.0,0.79096053]
[1766752995660,0.96993562,2973.2,2972.0,0.79096053]
[1766752995963,0.96993562,2973.1,2972.0,0.79096053]
[1766752996163,6.54126569,2973.3,2972.0,0.79096053]
[1766752996462,0.96994959,2973.2,2972.0,0.79096053]
[1766752996665,0.96994959,2973.1,2972.0,0.79096053]
[1766752996862,6.54126569,2973.3,2972.0,0.79096053]
[1766752997063,0.9695831,2973.2,2972.0,0.79096053]
[1766752997262,0.9695831,2973.1,2972.0,0.79096053]
[1766752997464,6.54126569,2973.3,2972.0,0.79096053]
[1766752997667,0.96958028,2973.2,2972.0,0.79096053]
[1766752997866,0.96958028,2973.1,2972.0,0.79096053]
[1766752998165,6.54126569,2973.3,2972.0,0.79096053]
[1766752998367,0.96957708,2973.2,2972.0,0.79096053]
[1766752998565,0.96957708,2973.1,2972.0,0.79096053]
[1766752998765,6.54126569,2973.3,2972.0,0.79096053]
[1766752998962,0.96955774,2973.2,2972.0,0.79096053]
[1766752999162,0.96955774,2973.1,2972.0,0.79096053]
[1766752999363,6.54126569,2973.3,2972.0,0.79096053]
[1766752999566,0.96955744,2973.2,2972.0,0.79096053]
[1766752999766,0.96955744,2973.1,2972.0,0.79096053]
[1766752999958,6.54126569,2973.3,2972.0,0.79096053]
[1766753000160,0.96955744,2973.2,2972.0,0.79096053]
[1766753000359,0.96955744,2973.1,2972.0,0.79096053]
[1766753000559,6.54126569,2973.3,2972.0,0.79096053]
[1766753000867,0.96955715,2973.2,2972.0,0.79096053]
[1766753001067,0.96955715,2973.1,2972.0,0.79096053]
[1766753001269,5.75030516,2973.3,2972.0,0.79096053]
[1766753001468,0.96956038,2973.2,2972.0,0.79096053]
[1766753001670,0.96956038,2973.1,2972.0,0.79096053]
[1766753001968,5.75030516,2973.3,2972.0,0.79096053]
[1766753002268,0.96956038,2973.2,2972.0,0.79096053]
[1766753002469,0.96956038,2973.1,2972.0,0.79096053]
[1766753002668,5.75030516,2973.3,2972.0,0.79096053]
[1766753002869,0.96956005,2973.2,2972.0,0.79096053]
[1766753003070,0.96956005,2973.1,2972.0,0.79096053]
[1766753003260,5.75030516,2973.3,2972.0,0.79096053]
[1766753003463,0.96957066,2973.2,2972.0,0.79096053]
[1766753003660,0.96957066,2973.1,2972.0,0.79096053]
[1766753003864,5.75030516,2973.3,2972.0,0.79096053]
[1766753004066,0.96956639,2973.2,2972.0,0.79096053]
[1766753004270,5.75030516,2973.3,2972.0,0.79096053]
[1766753004271,0.96956639,2973.1,2972.0,0.79096053]
[1766753004471,5.75030516,2973.3,2972.0,0.79096053]
[1766753004666,0.96956641,2973.2,2972.0,0.79096053]
[1766753004866,0.96956641,2973.1,2972.0,0.79096053]
[1766753005067,5.75030516,2973.3,2972.0,0.79096053]
[1766753005269,0.96956715,2973.2,2972.0,0.79096053]
[1766753005469,0.96956715,2973.1,2972.0,0.79096053]
[1766753005672,5.75030516,2973.3,2972.3,0.79096053]
[1766753005970,0.96956715,2973.2,2972.3,0.79096053]
[1766753006170,0.96956715,2973.1,2972.3,0.79096053]
[1766753006375,5.75030516,2973.3,2972.3,0.79096053]
[1766753006576,0.96956778,2973.2,2972.3,0.79096053]
[1766753006875,5.75030516,2973.3,2972.3,0.79096053]
[1766753007077,0.96956366,2973.2,2972.3,0.79096053]
[1766753007277,5.74230516,2973.3,2972.3,0.79096053]
[1766753007577,0.96955207,2973.2,2972.6,0.79096053]
[1766753007779,5.74230516,2973.3,2972.6,0.79096053]
[1766753007971,0.9695512,2973.2,2972.6,0.79096053]
[1766753008279,5.74230516,2973.3,2972.6,0.79096053]
[1766753008471,0.96953573,2973.2,2972.6,0.79096053]
[1766753008767,5.74230516,2973.3,2972.6,0.79096053]
[1766753008976,0.96953573,2973.2,2972.6,0.79096053]
[1766753009279,5.74230516,2973.3,2972.6,0.79096053]
[1766753009482,0.96952405,2973.2,2972.6,0.79096053]
[1766753009681,5.74230516,2973.3,2972.6,0.79096053]
[1766753009870,0.96952405,2973.2,2972.6,0.79096053]
[1766753010067,5.74230516,2973.3,2972.6,0.79096053]
[1766753010283,0.01923026,2972.9,2972.6,0.79096053]
[1766753010474,5.74230516,2973.3,2972.6,0.79096053]
[1766753010680,0.96948307,2973.2,2972.6,0.79096053]
[1766753010883,5.74230516,2973.3,2972.6,0.79096053]
[1766753011182,0.96946964,2973.2,2972.6,0.79096053]
[1766753011374,5.74230516,2973.3,2972.5,0.79096053]
[1766753011574,0.96945528,2973.2,2972.5,0.79096053]
[1766753011774,5.74230516,2973.3,2972.5,0.79096053]
[1766753011978,0.96945628,2973.2,2972.0,0.79069167]
[1766753012181,5.74230516,2973.3,2972.0,0.79069167]
[1766753012382,0.96941213,2973.2,2972.0,0.79069167]
[1766753012683,5.74230516,2973.3,2972.0,0.79069167]
[1766753012985,0.96941091,2973.2,2972.0,0.79069167]
[1766753013282,5.74230516,2973.3,2972.0,0.79069167]
[1766753013484,0.96939252,2973.2,2972.0,0.79069167]
[1766753013786,5.744,2973.2,2972.0,0.79069167]
[1766753016374,5.744,2973.2,2971.8,0.00504795]
[1766753016774,0.00330516,2973.3,2971.8,0.00504795]
[1766753016974,6.71238678,2973.2,2971.8,0.00504795]
[1766753017171,5.743,2973.1,2971.8,0.00504795]
[1766753019785,5.741,2973.1,2971.8,0.00504795]
[1766753031288,5.741,2973.1,2971.7,2.11128355]
[1766753031589,5.741,2973.1,2971.8,4.43913206]
[1766753032294,0.00504795,2972.7,2972.2,0.00504795]
[1766753034683,5.741,2973.1,2972.2,0.00504795]
[1766753035498,0.00330516,2973.3,2972.2,0.00504795]
[1766753035699,0.9692313,2973.2,2972.2,0.00504795]
[1766753035997,5.73330516,2973.3,2972.2,0.00504795]
[1766753036196,0.96923651,2973.2,2972.2,0.00504795]
[1766753036389,5.73330516,2973.3,2972.2,0.00504795]
[1766753036588,0.9692365,2973.2,2972.2,0.00504795]
[1766753036794,5.73330516,2973.3,2972.2,0.00504795]
[1766753036994,0.96923735,2973.2,2972.2,0.00504795]
[1766753037188,5.73330516,2973.3,2972.2,0.00504795]
[1766753037392,0.96923691,2973.2,2972.2,0.00504795]
[1766753037591,5.73330516,2973.3,2972.2,0.00504795]
[1766753037894,0.96923691,2973.2,2972.2,0.00504795]
[1766753038096,5.73330516,2973.3,2972.2,0.00504795]
[1766753038388,0.96924776,2973.2,2972.2,0.00504795]
[1766753038591,5.73330516,2973.3,2972.2,0.00504795]
[1766753038792,0.969238,2973.2,2972.2,0.00504795]
[1766753039093,5.73330516,2973.3,2972.2,0.00504795]
[1766753039294,0.96923784,2973.2,2972.2,0.00504795]
[1766753039593,5.73330516,2973.3,2972.2,0.00504795]
[1766753039795,0.96923784,2973.2,2972.2,0.00504795]
[1766753039995,5.73330516,2973.3,2972.2,0.00504795]
[1766753040192,0.96923577,2973.2,2972.2,0.00504795]
[1766753040498,5.73330516,2973.3,2972.2,0.00504795]
[1766753040700,0.96923577,2973.2,2972.2,0.00504795]
[1766753040894,5.73330516,2973.3,2972.2,0.00504795]
[1766753041090,0.96923577,2973.2,2972.2,0.00504795]
[1766753041396,5.73330516,2973.3,2972.2,0.00504795]
[1766753041601,0.96924643,2973.2,2972.2,0.00504795]
[1766753041786,5.73330516,2973.3,2972.2,0.00504795]
[1766753041991,0.96924643,2973.2,2972.2,0.00504795]
[1766753042190,5.73330516,2973.3,2972.2,0.00504795]
[1766753042391,0.96924973,2973.2,2972.2,0.00504795]
[1766753042593,5.73330516,2973.3,2972.2,0.00504795]
[1766753042893,0.96925016,2973.2,2972.2,0.00504795]
[1766753043091,5.73330516,2973.3,2972.2,0.00504795]
[1766753043295,0.96928347,2973.2,2972.2,0.00504795]
[1766753043495,0.96928257,2973.1,2972.2,0.00504795]
[1766753043695,5.73330516,2973.3,2972.2,0.00504795]
[1766753043896,0.96928257,2973.2,2972.2,0.00504795]
[1766753044096,0.96928257,2973.1,2972.2,0.00504795]
[1766753044296,5.73330516,2973.3,2972.2,0.00504795]
[1766753044595,0.96928345,2973.2,2972.2,0.00504795]
[1766753044894,5.73330516,2973.3,2972.2,0.00504795]
[1766753045094,0.96926151,2973.2,2972.2,0.00504795]
[1766753045303,5.73330516,2973.3,2972.2,0.00504795]
[1766753045498,0.96927239,2973.2,2972.2,0.00504795]
[1766753045797,5.73330516,2973.3,2972.2,0.00504795]
[1766753045999,0.96926629,2973.2,2972.2,0.00504795]
[1766753046194,5.73330516,2973.3,2972.2,0.00504795]
[1766753046394,0.95836713,2973.2,2972.2,0.00504795]
[1766753046600,5.73330516,2973.3,2972.2,0.00504795]
[1766753046799,5.733,2973.2,2972.2,0.00504795]
[1766753048694,0.00330516,2973.3,2972.2,0.00504795]
[1766753048899,5.734,2973.1,2972.2,0.00504795]
[1766753052499,5.734,2973.0,2972.2,0.00504795]
[1766753056807,5.734,2973.0,2971.8,4.43913206]
[1766753057601,0.00504795,2972.7,2972.1,0.00504795]
[1766753073918,0.00504795,2972.7,2972.2,0.79081452]
[1766753077723,5.734,2973.0,2972.2,0.79081452]
[1766753078022,5.729,2973.0,2972.2,0.79081452]
[1766753078817,0.00330516,2973.3,2972.7,0.79081452]
[1766753079118,5.73130516,2973.3,2973.0,0.79081452]
[1766753079320,5.73130516,2973.3,2972.8,0.79081452]
[1766753079922,5.73130516,2973.3,2972.7,0.00360508]
[1766753081020,5.73130516,2973.3,2972.4,0.79081452]
[1766753081220,5.73130516,2973.3,2972.2,1.96676392]
[1766753081617,5.73130516,2973.3,2972.2,0.79081452]
[1766753082018,6.52211968,2973.3,2972.2,0.00308002]
[1766753082220,0.96854005,2973.2,2972.2,1.18004429]
[1766753082419,6.52211968,2973.3,2972.2,0.00308002]
[1766753082623,0.96854516,2973.2,2972.2,0.00308002]
[1766753082826,6.52211968,2973.3,2972.2,0.00308002]
[1766753083026,0.96854551,2973.2,2972.2,0.00308002]
[1766753083225,6.52211968,2973.3,2972.2,0.00308002]
[1766753083419,0.96855428,2973.2,2972.2,0.00308002]
[1766753083622,6.52211968,2973.3,2972.2,0.00308002]
[1766753083918,0.96855672,2973.2,2972.2,0.00308002]
[1766753084226,6.52211968,2973.3,2972.2,0.00308002]
[1766753084428,0.96855694,2973.2,2972.2,0.00308002]
[1766753084619,6.52211968,2973.3,2972.2,0.00308002]
[1766753084821,0.96855694,2973.2,2972.2,0.00308002]
[1766753085124,6.52211968,2973.3,2972.2,0.00308002]
[1766753085330,0.96855676,2973.2,2972.2,0.00308002]
[1766753085522,6.52211968,2973.3,2972.2,0.00308002]
[1766753085723,0.96855688,2973.2,2972.2,0.00308002]
[1766753085923,6.52211968,2973.3,2972.2,0.00308002]
[1766753086124,0.96855716,2973.2,2972.2,0.00308002]
[1766753086325,6.52211968,2973.3,2972.2,0.00308002]
[1766753086526,0.96855789,2973.2,2972.2,0.00308002]
[1766753086727,6.52211968,2973.3,2972.2,0.00308002]
[1766753086926,0.96854109,2973.2,2972.2,0.00308002]
[1766753087128,6.52211968,2973.3,2972.2,0.00308002]
[1766753087329,0.96802944,2973.2,2972.2,0.00308002]
[1766753087632,6.52211968,2973.3,2972.2,0.00308002]
[1766753087832,0.96803292,2973.2,2972.2,0.00308002]
[1766753088025,6.52211968,2973.3,2972.2,0.00308002]
[1766753088227,0.96803292,2973.2,2972.2,0.00308002]
[1766753088530,6.52211968,2973.3,2972.2,0.00308002]
[1766753088728,0.96803301,2973.2,2972.2,0.00308002]
[1766753088930,6.52211968,2973.3,2972.2,0.00308002]
[1766753089125,0.96803301,2973.2,2972.2,0.00308002]
[1766753089326,6.52211968,2973.3,2972.2,0.00308002]
[1766753089525,0.96803325,2973.2,2972.2,0.00308002]
[1766753089726,6.52211968,2973.3,2972.2,0.00308002]
[1766753089925,0.96803325,2973.2,2972.2,0.00308002]
[1766753090128,6.52211968,2973.3,2972.2,0.00308002]
[1766753090322,0.96803325,2973.2,2972.2,0.00308002]
[1766753090522,6.52211968,2973.3,2972.2,0.00308002]
[1766753090724,0.96803397,2973.2,2972.2,0.00308002]
[1766753090925,6.52211968,2973.3,2972.2,0.00308002]
[1766753091126,0.96803397,2973.2,2972.2,0.00308002]
[1766753091325,6.52211968,2973.3,2972.2,0.00308002]
[1766753091629,0.96803531,2973.2,2972.2,0.00308002]
[1766753091836,0.02038559,2972.8,2972.2,0.00308002]
[1766753092135,5.75438559,2972.8,2972.2,0.00308002]
[1766753092335,0.02585202,2972.5,2972.2,0.00308002]
[1766753092633,0.03568488,2972.4,2972.2,0.00308002]
[1766753092934,5.734,2972.8,2972.1,0.00504795]
[1766753093524,0.01093286,2972.5,2972.1,0.00504795]
[1766753093728,0.01093286,2972.5,2972.1,0.0082837]
[1766753094037,5.734,2972.8,2972.1,0.0082837]
[1766753095429,5.733,2972.9,2972.1,0.0082837]
[1766753095929,0.01088242,2972.5,2972.1,0.0082837]
[1766753096130,0.01632363,2972.3,2972.1,0.0082837]
[1766753096327,5.733,2972.9,2972.1,0.0082837]
[1766753098142,0.01268793,2972.5,2972.1,0.0082837]
[1766753098542,0.02668759,2972.3,2972.1,0.0082837]
[1766753098743,5.733,2972.9,2972.1,0.0082837]
[1766753099044,0.01399501,2972.5,2972.1,0.0082837]
[1766753099341,0.02170852,2972.3,2972.1,0.0082837]
[1766753099537,5.733,2972.9,2972.1,0.0082837]
[1766753102040,5.733,2972.9,2972.2,0.79081452]
[1766753104848,0.01173777,2972.6,2972.2,0.79081452]
[1766753105241,3.385,2973.0,2972.2,0.79081452]
[1766753105543,0.00330516,2973.3,2972.2,0.79081452]
[1766753105544,0.00330516,2973.3,2972.5,0.79081452]
[1766753105751,0.01173777,2972.9,2972.5,0.79081452]
[1766753105948,5.734,2973.2,2972.5,0.79081452]
[1766753106148,0.01097617,2972.9,2972.5,0.79081452]
[1766753106347,0.00330516,2973.3,2972.5,0.79081452]
[1766753106545,8.74221376,2975.2,2972.1,0.0082837]
[1766753106546,3.03272786,2973.9,2972.9,0.79081452]
[1766753106748,0.96783296,2973.8,2972.4,4.946]
[1766753106938,5.733,2973.9,2973.1,0.79081452]
[1766753107145,0.96777779,2973.8,2973.1,0.79081452]
[1766753107347,5.733,2973.9,2973.1,0.79081452]
[1766753107545,0.02080016,2973.5,2973.1,0.79081452]
[1766753107952,0.35105744,2973.3,2973.1,0.79081452]
[1766753108153,5.73675803,2973.9,2973.1,0.79081452]
[1766753110953,5.73675803,2973.9,2972.9,0.79081452]
[1766753111658,0.00375803,2973.9,2972.9,0.79081452]
[1766753111857,5.73975803,2973.9,2972.9,0.79081452]
[1766753112262,5.736,2973.8,2972.9,0.79081452]
[1766753112461,0.01718562,2973.4,2972.9,0.79081452]
[1766753112663,5.736,2973.8,2972.9,0.79081452]
[1766753113667,0.01718562,2973.4,2972.9,0.79081452]
[1766753114057,5.736,2973.8,2972.9,0.79081452]
[1766753114665,0.01181824,2973.4,2972.9,0.79081452]
[1766753114854,0.01181824,2973.4,2972.8,0.79081452]
[1766753115661,0.01181824,2973.1,2972.8,0.79081452]
[1766753115859,5.736,2973.8,2972.8,0.79081452]
[1766753117268,5.73875803,2973.9,2972.8,0.79081452]
[1766753117868,5.73875803,2973.9,2972.7,0.79081452]
[1766753120371,0.01520484,2973.3,2972.7,0.79081452]
[1766753120766,9.68e-06,2973.0,2972.7,0.79081452]
[1766753120970,5.73875803,2973.9,2972.7,0.79081452]
[1766753121170,0.01521452,2973.3,2972.7,0.79081452]
[1766753121963,5.73875803,2973.9,2972.7,0.79081452]
[1766753127771,0.01519979,2973.3,2972.6,0.79081452]
[1766753128273,0.03039958,2973.0,2972.6,0.79081452]
[1766753128665,5.73875803,2973.9,2972.6,0.79081452]
[1766753131172,5.73875803,2973.9,2972.9,0.79081452]
[1766753132278,5.73875803,2973.9,2972.5,1.13431014]
[1766753132478,5.73875803,2973.9,2972.6,0.79081452]
[1766753133980,5.73875803,2973.9,2972.5,1.12826121]
[1766753134281,0.96505841,2973.8,2972.5,1.12826121]
[1766753134578,5.73875803,2973.9,2972.5,1.12826121]
[1766753134879,0.01171961,2973.2,2972.2,1.27502574]
[1766753135281,5.73875803,2973.9,2972.3,4.36227789]
[1766753135476,0.96554646,2973.8,2972.3,4.36227789]
[1766753135678,0.01398758,2973.1,2972.3,4.36227789]
[1766753136171,0.0210724,2972.7,2972.3,5.50719261]
[1766753136375,5.73875803,2973.9,2972.3,5.50719261]
[1766753136577,0.96632315,2973.8,2972.3,4.36227789]
[1766753136779,0.96632315,2973.7,2972.3,5.50719261]
[1766753136984,5.73875803,2973.9,2972.3,5.50719261]
[1766753137281,0.96632281,2973.8,2972.3,4.36227789]
[1766753137485,0.96632281,2973.7,2972.3,4.36227789]
[1766753137677,5.73875803,2973.9,2972.3,4.36227789]
[1766753137880,0.96631816,2973.8,2972.3,4.36227789]
[1766753138078,0.96631816,2973.7,2972.3,4.36227789]
[1766753138284,5.73875803,2973.9,2972.3,4.36227789]
[1766753138583,0.96631409,2973.8,2972.3,5.46554911]
[1766753138775,0.96631409,2973.7,2972.3,5.46554911]
[1766753138976,5.73875803,2973.9,2972.3,5.46554911]
[1766753139274,0.96631401,2973.8,2972.3,5.46554911]
[1766753139475,0.96631401,2973.7,2972.3,4.36227789]
[1766753139676,5.73875803,2973.9,2972.3,5.48581973]
[1766753139876,0.96631254,2973.8,2972.3,5.48581973]
[1766753140085,0.96631254,2973.7,2972.3,5.48584735]
[1766753140285,5.73875803,2973.9,2972.3,5.48584735]
[1766753140586,0.96630481,2973.8,2972.3,4.36227789]
[1766753140782,0.96630481,2973.7,2972.3,4.36227789]
[1766753140982,5.73875803,2973.9,2972.3,4.36227789]
[1766753141186,6.69933359,2973.8,2972.3,5.48182153]
[1766753141386,0.96633359,2973.7,2972.3,5.48182153]
[1766753141582,0.01273679,2973.0,2972.3,5.48182153]
[1766753141788,0.01273679,2973.0,2972.3,4.36227789]
[1766753142086,0.02547358,2972.7,2972.3,4.36227789]
[1766753142286,5.733,2973.8,2972.3,4.36227789]
[1766753142490,0.01273679,2973.1,2972.3,5.4788541]
[1766753142786,0.01273679,2973.1,2972.3,4.36227789]
[1766753142985,0.0207159,2972.7,2972.3,5.47419718]
[1766753143186,5.733,2973.8,2972.3,5.47419718]
[1766753143388,0.96631205,2973.7,2972.3,5.47419718]
[1766753143685,5.733,2973.8,2972.3,5.47419718]
[1766753143880,0.96628671,2973.7,2972.3,4.36227789]
[1766753144084,0.96628671,2973.6,2972.1,0.0082837]
[1766753144280,5.733,2973.8,2972.1,0.0082837]
[1766753144485,0.96618891,2973.7,2972.1,0.0082837]
[1766753144684,0.96618891,2973.6,2972.1,0.0082837]
[1766753144886,5.733,2973.8,2972.1,0.0082837]
[1766753145086,0.96618849,2973.7,2972.1,0.0082837]
[1766753145285,0.96618849,2973.6,2972.1,0.0082837]
[1766753145488,5.733,2973.8,2972.1,0.0082837]
[1766753145789,0.96611537,2973.7,2972.1,0.0082837]
[1766753145988,0.96611537,2973.6,2972.1,0.0082837]
[1766753146181,5.733,2973.8,2972.1,0.0082837]
[1766753146384,0.96606112,2973.7,2972.1,0.0082837]
[1766753146579,0.96606112,2973.6,2972.1,0.0082837]
[1766753146780,5.733,2973.8,2972.1,0.0082837]
[1766753146989,0.96606099,2973.7,2972.1,0.0082837]
[1766753147187,0.96606099,2973.6,2972.1,0.0082837]
[1766753147489,5.733,2973.8,2972.1,0.0082837]
[1766753147687,0.966187,2973.7,2972.1,0.0082837]
[1766753147888,0.966187,2973.6,2972.1,0.0082837]
[1766753148091,5.754,2973.5,2972.1,0.0082837]
[1766753148396,0.01198864,2972.8,2972.1,0.0082837]
[1766753148992,0.02397728,2972.5,2972.1,0.0082837]
[1766753149193,5.754,2973.5,2972.1,0.0082837]
[1766753149391,0.01198864,2972.8,2972.1,0.0082837]
[1766753149686,0.17199803,2973.9,2972.2,4.45258109]
[1766753149888,0.01022356,2973.1,2972.2,4.45258109]
[1766753150993,0.01022356,2972.7,2972.2,4.45258109]
[1766753151194,5.752,2973.5,2972.2,4.45258109]
[1766753155096,0.01005061,2972.9,2972.2,4.45258109]
[1766753155597,0.02010122,2972.6,2972.2,4.45258109]
[1766753155790,5.752,2973.5,2972.2,4.45258109]
[1766753155990,0.01005061,2972.9,2972.2,4.45258109]
[1766753156500,0.02010122,2972.6,2972.2,4.45258109]
[1766753156695,5.752,2973.5,2972.2,4.45258109]
[1766753158598,0.17199803,2973.9,2972.2,4.45258109]
[1766753158800,0.9661336,2973.8,2972.2,4.45258109]
[1766753158993,0.9661336,2973.7,2972.2,4.45258109]
[1766753159188,5.91799803,2973.9,2972.2,4.45258109]
[1766753159396,0.96613591,2973.8,2972.2,4.45258109]
[1766753159595,0.96613591,2973.7,2972.2,4.45258109]
[1766753159802,0.96613591,2973.6,2972.2,4.45258109]
[1766753160004,5.91799803,2973.9,2972.2,4.45258109]
[1766753160305,0.96613632,2973.8,2972.2,4.45258109]
[1766753160501,0.96613632,2973.7,2972.2,4.45258109]
[1766753160702,0.96613632,2973.6,2972.2,4.45258109]
[1766753161003,5.91799803,2973.9,2972.2,4.45258109]
[1766753161197,0.96614118,2973.8,2972.2,4.45258109]
[1766753161496,0.96614118,2973.7,2972.2,4.45258109]
[1766753161698,0.96614118,2973.6,2972.3,6.326]
[1766753161897,5.91799803,2973.9,2972.3,6.326]
[1766753162099,0.96615564,2973.8,2972.3,6.326]
[1766753162298,0.96615564,2973.7,2972.3,6.326]
[1766753162499,0.01980835,2973.0,2972.3,6.326]
[1766753163110,5.91799803,2973.9,2972.3,6.326]
[1766753163111,0.03362966,2972.7,2972.3,6.326]
[1766753163298,5.91799803,2973.9,2972.3,6.326]
[1766753163607,0.01382131,2973.1,2972.3,6.326]
[1766753163903,0.01854686,2972.7,2972.3,6.326]
[1766753164105,5.91799803,2973.9,2972.3,6.326]
[1766753164304,0.9662033,2973.8,2972.3,6.326]
[1766753164501,0.9662033,2973.7,2972.3,6.326]
[1766753164704,5.91799803,2973.9,2972.3,6.326]
[1766753164905,0.96620926,2973.8,2972.3,6.326]
[1766753165205,0.96620926,2973.7,2972.3,6.326]
[1766753165398,5.91799803,2973.9,2972.3,6.326]
[1766753165597,0.96623337,2973.8,2972.3,6.326]
[1766753165797,0.96623337,2973.7,2972.3,6.326]
[1766753166000,5.91799803,2973.9,2972.3,6.326]
[1766753166203,0.96623416,2973.8,2972.3,6.326]
[1766753166401,0.96623416,2973.7,2972.3,6.326]
[1766753166613,5.91799803,2973.9,2972.3,6.326]
[1766753166905,0.96626276,2973.8,2972.3,6.326]
[1766753167107,0.96626276,2973.7,2972.3,6.326]
[1766753167310,5.91799803,2973.9,2972.3,6.326]
[1766753167514,0.96629752,2973.8,2972.3,6.326]
[1766753167814,0.96629752,2973.7,2972.3,6.326]
[1766753168013,5.91799803,2973.9,2972.3,6.326]
[1766753168210,0.96629754,2973.8,2972.3,6.326]
[1766753168409,0.96629754,2973.7,2972.3,6.326]
[1766753168709,5.91799803,2973.9,2972.3,6.326]
[1766753169009,0.96633662,2973.8,2972.3,6.326]
[1766753169213,0.01490528,2973.1,2972.3,6.326]
[1766753169613,0.02981056,2972.7,2972.3,6.326]
[1766753169815,5.91799803,2973.9,2972.3,6.326]
[1766753170113,0.01490528,2973.1,2972.3,6.326]
[1766753170513,0.01637892,2972.7,2972.3,6.326]
[1766753170714,5.91799803,2973.9,2972.3,6.326]
[1766753171014,0.96642554,2973.8,2972.3,6.326]
[1766753171217,0.96642554,2973.7,2972.3,6.326]
[1766753171515,5.91799803,2973.9,2972.3,6.326]
[1766753171718,0.96647066,2973.8,2972.3,6.326]
[1766753172015,0.96647066,2973.7,2972.3,6.326]
[1766753172314,5.91799803,2973.9,2972.3,6.326]
[1766753172515,0.96651539,2973.8,2972.3,6.326]
[1766753172714,0.96651539,2973.7,2972.3,6.326]
[1766753172916,5.91799803,2973.9,2972.3,6.326]
[1766753173118,6.70351539,2973.8,2972.3,6.326]
[1766753173317,0.96651539,2973.7,2972.3,6.326]
[1766753176022,0.01515422,2973.0,2972.3,6.326]
[1766753176216,5.737,2973.8,2972.3,6.326]
[1766753176422,0.966555,2973.7,2972.3,6.326]
[1766753176623,0.17199803,2973.9,2972.4,4.31721098]
[1766753176917,0.96651338,2973.8,2972.5,0.79055553]
[1766753177119,0.00375803,2973.9,2972.5,0.79055553]
[1766753177324,0.9657256,2973.8,2972.5,0.79055553]
[1766753177622,0.00375803,2973.9,2972.5,0.79055553]
[1766753177816,0.96552908,2973.8,2972.5,0.79055553]
[1766753178016,0.00375803,2973.9,2972.5,0.79055553]
[1766753178323,0.9655291,2973.8,2972.5,0.79055553]
[1766753178523,0.00375803,2973.9,2972.5,0.79055553]
[1766753178718,0.9654204,2973.8,2972.6,4.38018076]
[1766753178926,0.00375803,2973.9,2972.7,6.378]
[1766753179120,0.96541874,2973.8,2972.7,6.378]
[1766753179316,0.00375803,2973.9,2972.8,4.28126753]
[1766753179922,0.00375803,2973.9,2972.9,0.79055553]
[1766753180316,0.00375803,2973.9,2972.9,1.83387507]
[1766753181122,0.00375803,2973.9,2972.9,0.79055553]
[1766753181523,0.00375803,2973.9,2972.9,1.84567559]
[1766753181723,0.00375803,2973.9,2972.9,1.83484602]
[1766753182522,0.01,2974.0,2972.9,1.83484602]
[1766753182728,0.01592377,2973.5,2973.0,4.43175396]
[1766753182929,0.01,2974.0,2973.0,4.43175396]
[1766753183230,0.01,2974.0,2973.0,5.22230949]
[1766753183627,0.01519695,2973.5,2973.0,0.79055553]
[1766753183830,0.01397529,2974.0,2973.1,4.3021226]
[1766753184528,5.89919,2974.8,2973.4,0.79055553]
[1766753184728,0.96390258,2974.7,2973.8,0.00504795]
[1766753184929,0.96390258,2974.6,2973.8,0.00504795]
[1766753185123,5.89919,2974.8,2973.8,0.00504795]
[1766753185326,0.96386302,2974.7,2973.8,0.00504795]
[1766753185529,0.00307271,2974.7,2973.8,0.00504795]
[1766753187134,5.73407271,2974.7,2973.8,0.00504795]
[1766753187834,5.73307271,2974.7,2973.8,0.00504795]
[1766753188428,0.00307271,2974.7,2973.8,0.00504795]
[1766753190032,0.01140444,2974.3,2973.8,0.00504795]
[1766753190433,0.01710666,2974.1,2973.8,0.00504795]
[1766753190938,0.03119693,2974.0,2973.8,0.00504795]
[1766753191241,0.0452872,2973.9,2973.8,0.00504795]
[1766753191442,0.00307271,2974.7,2973.8,0.00504795]
[1766753195642,0.005,2974.5,2973.2,0.99269844]
[1766753195948,0.7900291,2974.1,2972.8,0.7900291]
[1766753196141,0.7900291,2974.1,2972.8,1.78381688]
[1766753196542,0.7900291,2974.4,2973.2,0.00504795]
[1766753197350,0.01613638,2973.8,2973.2,0.00504795]
[1766753197742,0.0296041,2973.5,2973.2,0.00504795]
[1766753197943,0.0296041,2973.5,2973.1,0.7900291]
[1766753198841,0.0296041,2973.3,2972.4,0.7900291]
[1766753199036,0.0296041,2973.3,2972.8,0.9811935]
[1766753199244,0.03465205,2973.3,2972.6,0.00504795]
[1766753199837,0.0296041,2973.0,2972.6,0.00504795]
[1766753200043,0.00504795,2973.3,2972.6,0.00504795]
[1766753202252,0.00504795,2973.3,2972.7,0.7900291]
[1766753209858,0.00504795,2973.3,2972.6,0.00504795]
[1766753223866,0.00504795,2973.3,2972.6,0.79507705]
[1766753228168,0.16824,2974.0,2972.9,0.7900291]